bitfinex/quotes_ETHUSD_20240824
["timestamp","ask_amount","ask_price","bid_price","bid_amount"]
[1724517775724,13.27372,2814.6,2813.8,3.0]
[1724517775868,0.03562905,2814.2,2813.8,6.5539]
[1724517776073,9.7208,2814.6,2813.8,4.09630373]
[1724517776270,0.02954731,2814.1,2813.8,3.0]
[1724517776495,13.27379,2814.6,2813.8,3.0]
[1724517777019,0.02877023,2814.5,2813.8,3.0]
[1724517777312,0.02877023,2814.5,2813.7,3.55402]
[1724517777513,3.55336,2814.3,2813.6,0.1311348]
[1724517777731,1.33658254,2814.4,2813.6,3.1311348]
[1724517777869,13.27483,2813.7,2813.6,0.1311348]
[1724517778073,11.403671,2813.7,2813.6,0.1311348]
[1724517778298,9.7556337,2813.7,2813.6,0.1311348]
[1724517778882,0.0348337,2813.7,2813.6,0.1311348]
[1724517779246,14.60422602,2814.4,2813.6,0.1311348]
[1724517779446,13.30396369,2813.7,2813.6,0.1311348]
[1724517779649,9.7208,2813.7,2813.6,0.1311348]
[1724517779886,11.07736689,2813.7,2813.6,0.1311348]
[1724517780065,14.63139689,2813.7,2813.6,0.1311348]
[1724517780270,21.73945689,2813.7,2813.6,0.1311348]
[1724517780478,22.28945689,2813.7,2813.6,0.1311348]
[1724517780983,18.73542689,2813.7,2813.6,0.1311348]
[1724517781148,22.29532859,2813.7,2813.6,0.1311348]
[1724517781348,18.74129859,2813.7,2813.6,0.1311348]
[1724517782152,11.63323859,2813.7,2813.6,0.1311348]
[1724517782392,11.08323859,2813.7,2813.6,0.1311348]
[1724517782785,9.7208,2813.7,2813.6,0.1311348]
[1724517783103,3.55344,2814.2,2813.6,0.1311348]
[1724517783406,1.68701926,2813.7,2813.6,3.6852948]
[1724517783890,1.68701926,2813.7,2813.6,9.5042598]
[1724517784074,1.68701926,2813.7,2813.6,12.5042598]
[1724517784276,0.36903688,2813.7,2813.6,15.2153878]
[1724517784592,0.36903688,2813.7,2813.6,6.6852948]
[1724517784792,0.36903688,2813.7,2813.6,3.1311348]
[1724517785002,24.05289,2813.7,2813.6,3.1311348]
[1724517785209,3.55507,2812.9,2812.0,4.11334947]
[1724517785407,3.55519,2812.8,2812.0,4.11334947]
[1724517785697,3.55507,2812.9,2812.0,0.55726947]
[1724517785985,3.5553,2812.7,2812.0,0.55726947]
[1724517786558,3.55507,2812.9,2812.0,0.55726947]
[1724517786769,13.27574,2813.0,2812.0,4.52479842]
[1724517786958,9.7208,2813.0,2812.2,3.55592]
[1724517787158,0.02780679,2812.9,2812.0,4.52479842]
[1724517787570,0.02780679,2812.9,2812.2,3.55592]
[1724517787905,0.02780679,2812.9,2812.0,4.52479842]
[1724517788063,3.58286679,2812.9,2812.0,4.52479842]
[1724517788267,5.26872547,2812.9,2812.0,4.52479842]
[1724517788462,5.26872547,2812.9,2812.1,3.0]
[1724517788822,3.55839806,2812.8,2812.1,3.0]
[1724517788963,3.55839806,2812.8,2812.0,0.55726947]
[1724517789164,0.00320806,2812.8,2812.1,3.55597]
[1724517789475,0.00320806,2812.8,2812.0,4.11336947]
[1724517789794,0.00320806,2812.8,2812.2,3.5559]
[1724517790004,0.00320806,2812.8,2812.4,3.55558]
[1724517790166,0.00320806,2812.8,2812.5,9.8783]
[1724517790366,3.55198,2815.4,2812.5,9.8783]
[1724517790367,9.1709,2814.2,2813.6,3.55406]
[1724517790691,12.72391,2814.6,2813.8,3.55387]
[1724517790996,1.62766,2814.6,2813.9,3.55376]
[1724517791153,3.55269,2814.8,2813.9,3.55377]
[1724517791348,16.2758,2815.0,2814.0,3.55365]
[1724517791551,9.1709,2815.0,2814.2,3.55339]
[1724517791750,9.1709,2815.0,2814.4,3.55313]
[1724517792002,9.1709,2815.0,2814.5,3.55299]
[1724517792192,12.7228,2815.4,2814.6,3.55286]
[1724517792397,12.7228,2815.4,2814.5,3.55299]
[1724517792398,1.27228,2815.3,2814.5,3.55299]
[1724517792697,1.27228,2815.3,2814.6,3.55288]
[1724517792896,1.27228,2815.3,2814.5,3.55299]
[1724517793061,9.1709,2816.1,2813.9,16.43202]
[1724517793266,3.55123,2816.0,2815.0,3.55227]
[1724517793477,3.55127,2815.9,2815.0,3.55227]
[1724517793685,12.8409,2816.1,2815.2,3.55212]
[1724517794100,16.39191,2816.1,2815.1,3.55226]
[1724517794311,3.55129,2815.9,2815.0,3.55237]
[1724517794819,3.55129,2815.9,2815.1,3.55225]
[1724517795027,3.55129,2815.9,2815.0,3.55237]
[1724517795566,1.639191,2816.0,2815.1,7.10454]
[1724517795567,3.67,2815.2,2815.1,7.10454]
[1724517795873,5.309191,2816.0,2815.3,3.55197]
[1724517796073,1.8031101,2815.9,2815.3,3.55197]
[1724517796605,3.67,2816.0,2815.5,3.55167]
[1724517796936,3.55054,2816.5,2815.5,3.55167]
[1724517796937,3.55081,2816.3,2815.5,3.55167]
[1724517797646,9.1709,2815.3,2813.8,0.71097691]
[1724517797814,3.55248,2815.0,2814.0,3.55355]
[1724517798111,3.55256,2814.9,2814.0,3.55355]
[1724517798267,4.46927,2815.2,2814.0,3.55355]
[1724517798472,4.46927,2815.2,2814.2,3.55339]
[1724517798675,4.46927,2815.2,2814.3,3.55318]
[1724517798871,0.91709,2815.2,2814.4,3.55315]
[1724517799244,9.1709,2815.3,2814.4,3.55315]
[1724517799379,9.1709,2815.8,2814.6,3.55278]
[1724517799706,3.55227,2815.2,2814.3,0.710657]
[1724517799872,3.55227,2815.2,2814.3,3.0]
[1724517799873,3.55242,2815.0,2814.3,3.0]
[1724517800276,3.55256,2814.9,2814.1,3.0]
[1724517800518,3.55256,2814.9,2814.1,6.55353]
[1724517800723,3.55256,2814.9,2814.1,3.0]
[1724517801413,3.55256,2814.9,2814.1,6.55353]
[1724517801617,0.710485,2814.9,2814.2,3.55338]
[1724517801911,3.55255,2814.9,2814.1,3.0]
[1724517802574,9.1709,2814.8,2814.1,3.55353]
[1724517802865,3.55443,2813.4,2812.2,3.55588]
[1724517803010,3.55455,2813.3,2812.4,3.55559]
[1724517803217,9.1709,2813.6,2812.0,14.70303642]
[1724517803218,3.55501,2813.0,2812.0,14.70303642]
[1724517803470,3.55517,2812.9,2812.0,14.70303642]
[1724517803615,3.55518,2812.8,2812.0,4.82473642]
[1724517803947,3.55518,2812.8,2812.0,1.26860642]
[1724517804146,3.55532,2812.7,2812.0,0.55726947]
[1724517804360,3.55518,2812.8,2812.0,4.11344947]
[1724517804669,3.55518,2812.8,2812.0,0.55726947]
[1724517805634,3.55545,2812.6,2812.0,0.55726947]
[1724517805887,3.55545,2812.6,2811.7,0.43333012]
[1724517805888,3.5557,2812.4,2811.7,0.37141334]
[1724517806032,3.5557,2812.4,2811.5,3.55677]
[1724517807079,3.5557,2812.4,2811.4,3.55691]
[1724517807437,3.5557,2812.4,2810.8,3.6887648]
[1724517807438,3.67,2811.9,2810.8,0.1311348]
[1724517807646,12.72785,2811.4,2810.8,0.1311348]
[1724517807874,3.55709,2811.3,2810.8,0.1311348]
[1724517808390,4.10731,2811.2,2810.8,0.1311348]
[1724517808698,9.1709,2811.4,2810.8,0.0811348]
[1724517808841,12.72786,2811.4,2810.8,0.0811348]
[1724517809040,1.272786,2811.3,2810.8,0.0811348]
[1724517809758,3.55733,2811.1,2810.8,0.0811348]
[1724517810296,7.11478,2811.1,2810.8,0.0811348]
[1724517810444,4.10756,2811.0,2810.8,0.0811348]
[1724517810841,1.272786,2811.3,2810.8,0.0811348]
[1724517811042,1.5943686,2811.2,2810.8,0.0811348]
[1724517811236,1.0443686,2811.2,2810.8,0.0811348]
[1724517811638,0.55,2811.1,2810.8,0.0811348]
[1724517812046,3.55757,2810.9,2810.8,0.0811348]
[1724517812277,0.55,2810.9,2810.8,0.0811348]
[1724517812471,1.015739,2810.9,2810.8,0.0811348]
[1724517812685,4.685739,2810.9,2810.8,0.0811348]
[1724517813237,11.800879,2810.9,2810.8,0.0811348]
[1724517814240,21.208479,2810.9,2810.8,0.0811348]
[1724517814869,17.650909,2810.9,2810.8,0.0811348]
[1724517815401,14.093339,2810.9,2810.8,0.0811348]
[1724517815540,4.22,2810.9,2810.8,0.0811348]
[1724517815945,3.67,2810.9,2810.8,0.0811348]
[1724517817389,3.67,2811.1,2810.8,0.0811348]
[1724517817593,1.60817972,2811.1,2810.8,0.0811348]
[1724517819914,1.60817972,2811.1,2810.8,3.6388348]
[1724517820120,1.60817972,2811.1,2810.8,4.35851028]
[1724517820302,3.55665,2811.7,2810.8,4.35851028]
[1724517820646,12.96405,2811.8,2810.8,4.35851028]
[1724517820796,3.55658,2811.7,2810.9,3.55757]
[1724517820995,3.55658,2811.7,2810.8,0.80081028]
[1724517821353,3.55658,2811.7,2810.8,4.35846028]
[1724517821494,3.5562,2812.0,2810.9,3.99341603]
[1724517821700,12.96357,2812.2,2811.1,3.5573]
[1724517821941,12.96357,2812.2,2811.2,3.55708]
[1724517821942,3.0,2812.1,2811.2,3.55708]
[1724517822145,9.4076,2812.2,2811.1,3.5573]
[1724517822146,9.4076,2812.2,2811.3,0.711438]
[1724517822347,3.55614,2812.1,2811.3,0.711438]
[1724517822643,3.55614,2812.1,2811.3,6.55706]
[1724517822847,3.55614,2812.1,2811.3,3.0]
[1724517823611,3.55583,2812.3,2811.3,3.0]
[1724517823950,3.55583,2812.3,2811.4,3.55694]
[1724517824186,3.55583,2812.3,2811.3,3.0]
[1724517824187,3.55595,2812.2,2811.3,3.0]
[1724517824387,3.55606,2812.1,2811.4,0.655711]
[1724517824686,3.55583,2812.3,2811.4,4.212641]
[1724517825041,3.55596,2812.2,2811.4,0.655711]
[1724517825235,3.55583,2812.3,2811.4,0.655711]
[1724517825434,3.55669,2811.7,2810.8,0.0811348]
[1724517825683,13.34462,2812.2,2810.8,0.0811348]
[1724517825981,3.55676,2811.6,2810.8,0.0811348]
[1724517826440,3.55684,2811.5,2810.8,0.0811348]
[1724517826668,3.55703,2811.4,2810.8,0.0811348]
[1724517826872,3.5571,2811.3,2810.8,0.0811348]
[1724517827069,4.268494,2811.3,2810.8,0.0811348]
[1724517827273,20.46131,2810.9,2810.8,0.0811348]
[1724517827442,24.01888,2810.9,2810.8,0.0811348]
[1724517827639,24.56888,2810.9,2810.8,0.0811348]
[1724517827863,27.56888,2810.9,2810.8,0.0811348]
[1724517828064,30.74130669,2810.9,2810.8,0.0811348]
[1724517828264,27.18373669,2810.9,2810.8,0.0811348]
[1724517828765,30.74130669,2810.9,2810.8,0.0811348]
[1724517829288,30.74130669,2810.9,2810.8,4.8e-06]
[1724517829661,3.55898,2809.8,2808.9,3.56007]
[1724517829890,3.55898,2809.8,2809.0,1.37049433]
[1724517830112,3.55852,2810.2,2809.3,3.55959]
[1724517830264,3.5586,2810.1,2809.3,3.55959]
[1724517830611,3.55824,2810.4,2809.3,3.55952]
[1724517830770,0.55,2810.3,2809.5,3.55933]
[1724517831118,0.55,2810.3,2809.6,3.655933]
[1724517831460,0.55,2810.3,2809.6,7.215143]
[1724517831669,3.55843,2810.3,2809.6,3.0]
[1724517831908,3.55843,2810.3,2809.4,3.0]
[1724517832115,3.55843,2810.3,2809.4,6.55947]
[1724517832884,3.55843,2810.3,2809.5,3.55935]
[1724517833099,3.55843,2810.3,2809.6,3.0]
[1724517833803,3.55843,2810.3,2808.7,3.56026]
[1724517833804,3.55922,2809.6,2808.7,3.56026]
[1724517834266,4.10936,2809.5,2808.5,4.09221242]
[1724517834464,4.10936,2809.5,2808.5,3.93406243]
[1724517834721,3.55864,2810.1,2808.3,9.9847]
[1724517834722,9.2158,2810.2,2808.3,10.35826243]
[1724517834943,9.2158,2810.2,2809.3,3.55948]
[1724517835065,14.051689,2810.2,2809.1,13.077]
[1724517835287,3.55859,2810.1,2809.1,13.077]
[1724517835485,3.55873,2810.0,2809.1,13.077]
[1724517836035,3.55873,2810.0,2809.1,3.5598]
[1724517836391,0.55,2809.9,2809.1,3.5598]
[1724517836596,0.410873,2809.8,2809.1,3.5598]
[1724517836906,0.55,2809.7,2809.1,3.55977]
[1724517837103,10.493219,2810.2,2809.4,3.55939]
[1724517837286,1.277419,2810.2,2809.4,3.55935]
[1724517837493,9.3297,2810.6,2809.4,3.55935]
[1724517837692,3.55844,2810.3,2809.4,3.55935]
[1724517838026,3.55844,2810.3,2808.9,3.55681681]
[1724517838027,3.55897,2809.8,2808.9,3.55681681]
[1724517838230,3.55897,2809.8,2808.9,6.5601]
[1724517838231,3.55908,2809.8,2808.9,6.5601]
[1724517838387,3.55908,2809.8,2809.0,3.55995]
[1724517838743,0.355908,2809.7,2809.0,3.55995]
[1724517838890,0.355908,2809.7,2809.2,3.55972]
[1724517839138,3.55875,2810.0,2809.0,3.55995]
[1724517839338,0.55,2809.9,2809.0,3.55995]
[1724517839569,9.8797,2809.9,2808.8,3.56015]
[1724517839781,3.5591,2809.7,2808.9,3.55998]
[1724517839993,3.5591,2809.7,2808.8,3.56023]
[1724517840190,4.46513,2809.6,2808.7,13.07755]
[1724517840340,4.46514,2809.6,2808.7,13.07755]
[1724517840541,0.90591,2809.6,2808.9,3.5601]
[1724517840858,0.90591,2809.6,2808.7,13.07755]
[1724517841057,0.90591,2809.6,2808.1,0.1311348]
[1724517841058,9.3297,2809.2,2808.1,0.1311348]
[1724517841254,3.56099,2808.2,2808.1,0.1311348]
[1724517841573,9.3297,2808.4,2808.1,0.1311348]
[1724517841739,12.89045,2808.4,2808.1,0.1311348]
[1724517841942,3.56099,2808.2,2808.1,0.1311348]
[1724517842153,0.55,2808.2,2808.1,0.1311348]
[1724517842836,0.55,2808.3,2808.1,0.1311348]
[1724517843121,0.55,2808.4,2808.1,0.1311348]
[1724517843317,0.961065,2808.4,2808.1,0.1311348]
[1724517843483,4.521815,2808.4,2808.1,0.1311348]
[1724517844061,0.961065,2808.4,2808.1,0.1311348]
[1724517844317,0.55,2808.4,2808.1,0.1311348]
[1724517845798,1.288933,2809.1,2808.1,0.1311348]
[1724517846001,3.56002,2809.0,2808.1,0.1311348]
[1724517846167,3.56002,2809.0,2808.2,3.5609]
[1724517846368,1.288933,2809.1,2808.4,3.56063]
[1724517846679,12.88932,2809.3,2808.4,3.56063]
[1724517846883,12.88932,2809.3,2808.2,13.0781]
[1724517847199,5.7837,2809.5,2808.7,3.56025]
[1724517847386,9.3297,2809.7,2808.3,3.0]
[1724517847563,9.3297,2809.7,2809.0,3.55995]
[1724517847767,1.288864,2809.7,2809.0,3.55995]
[1724517848015,1.288864,2809.7,2808.8,3.56015]
[1724517848016,3.55909,2809.7,2808.8,3.56015]
[1724517848522,3.55909,2809.7,2808.8,3.56014]
[1724517848815,3.55894,2809.9,2809.0,13.07716]
[1724517849128,7.11807,2809.8,2809.0,13.07716]
[1724517849425,3.56037,2808.7,2807.9,3.56137]
[1724517849713,9.3297,2809.6,2808.2,3.56099]
[1724517849924,3.5596,2809.4,2808.3,3.56086]
[1724517850219,3.55977,2809.2,2808.3,3.56086]
[1724517850522,0.55,2809.1,2808.3,3.56086]
[1724517850667,0.55,2809.1,2808.3,4.28615848]
[1724517850871,3.55901,2809.8,2808.7,3.56033]
[1724517851071,3.55901,2809.8,2808.7,3.56028]
[1724517851327,0.93297,2810.0,2808.7,3.56028]
[1724517851328,3.55932,2809.6,2808.7,3.56028]
[1724517851489,9.0044,2809.7,2808.3,1.43627539]
[1724517851825,3.55993,2809.1,2808.3,6.56085]
[1724517852125,3.55961,2809.3,2808.4,12.85401]
[1724517852285,3.55961,2809.3,2808.4,12.85394]
[1724517852479,3.55939,2809.5,2808.7,3.56036]
[1724517852676,12.56352,2809.7,2808.4,9.2933]
[1724517852677,3.55912,2809.7,2808.4,9.2933]
[1724517852870,3.55912,2809.7,2808.8,7.12029]
[1724517853072,3.55912,2809.7,2808.9,3.5601]
[1724517853425,3.55966,2809.3,2808.5,6.64647934]
[1724517853730,3.56032,2808.8,2808.1,0.1311348]
[1724517853875,12.56395,2809.4,2808.1,0.1311348]
[1724517853876,9.0044,2809.4,2808.1,0.1311348]
[1724517854143,3.56099,2808.2,2808.1,0.1311348]
[1724517854615,4.11099,2808.2,2808.1,0.1311348]
[1724517855077,0.55,2808.2,2808.1,0.1311348]
[1724517855475,4.11092,2808.3,2808.1,0.1311348]
[1724517855670,0.55,2808.3,2808.1,0.1311348]
[1724517855922,3.56065,2808.5,2808.1,0.1311348]
[1724517856217,0.356065,2808.4,2808.1,0.1311348]
[1724517856443,0.356065,2808.4,2807.1,1.26928858]
[1724517856444,9.0044,2807.8,2806.6,1.4416279]
[1724517856576,9.0044,2807.8,2805.9,6.05490916]
[1724517856577,3.56303,2806.6,2805.3,3.6958048]
[1724517856925,9.0044,2807.6,2805.7,9.2933]
[1724517857075,3.56253,2807.0,2805.9,3.56389]
[1724517857277,3.56227,2807.2,2806.2,3.56344]
[1724517857521,0.906227,2807.1,2806.5,3.56312]
[1724517857720,3.56189,2807.5,2806.5,3.56312]
[1724517857924,3.56202,2807.4,2806.5,3.56313]
[1724517858123,3.56252,2807.0,2805.8,3.56392]
[1724517858424,3.56252,2807.0,2805.7,9.2933]
[1724517858425,3.56291,2806.7,2805.7,9.2933]
[1724517858641,3.56304,2806.6,2805.7,12.85745]
[1724517858776,3.56328,2806.5,2805.7,9.2933]
[1724517859143,3.56332,2806.4,2805.3,9.4244348]
[1724517859280,3.56362,2806.2,2805.3,9.4244348]
[1724517859627,3.5638,2806.0,2805.3,0.1311348]
[1724517859786,4.11368,2806.1,2805.3,0.1311348]
[1724517859989,5.23198,2806.0,2805.3,0.1311348]
[1724517860218,1.66817,2806.0,2805.3,0.1311348]
[1724517860447,1.66817,2806.0,2805.3,3.6957948]
[1724517860596,1.66817,2806.0,2805.3,0.1311348]
[1724517861010,1.66817,2806.0,2805.3,0.56012907]
[1724517861193,1.66817,2806.0,2805.3,0.1311348]
[1724517861380,4.692232,2805.9,2805.3,0.1311348]
[1724517861754,3.56418,2805.7,2805.3,0.1311348]
[1724517862330,4.142202,2805.9,2805.3,0.1311348]
[1724517862529,0.55,2805.8,2805.3,0.1311348]
[1724517862874,16.1335,2805.4,2805.3,0.1311348]
[1724517863079,21.3114,2805.4,2805.3,0.1311348]
[1724517863336,14.1823,2805.4,2805.3,0.1311348]
[1724517863477,14.7323,2805.4,2805.3,0.1311348]
[1724517863807,11.16775,2805.4,2805.3,0.1311348]
[1724517864007,18.29685,2805.4,2805.3,0.1311348]
[1724517865276,21.8614,2805.4,2805.3,0.1311348]
[1724517865492,2.16335,2805.4,2805.3,0.1311348]
[1724517865702,0.55,2805.4,2805.3,0.1311348]
[1724517865932,3.0,2805.8,2805.3,0.1311348]
[1724517865933,4.11444,2805.5,2805.3,0.1311348]
[1724517866231,7.1291,2805.4,2805.3,0.1311348]
[1724517866433,7.6791,2805.4,2805.3,0.1311348]
[1724517867769,20.60365,2805.4,2805.3,0.1311348]
[1724517868055,22.664015,2805.4,2805.3,0.1311348]
[1724517868801,3.56602,2804.3,2803.7,0.55901763]
[1724517869116,3.56602,2804.3,2803.4,3.56697]
[1724517869321,0.55,2804.2,2803.5,3.56695]
[1724517869524,6.56521,2804.9,2803.2,9.877]
[1724517869741,5.707841,2804.8,2803.7,3.5667]
[1724517870049,2.142521,2804.8,2803.9,3.56635]
[1724517870251,3.56559,2804.6,2803.8,13.54096]
[1724517870545,3.56559,2804.6,2803.4,9.9744]
[1724517870546,0.55,2804.5,2803.4,9.9744]
[1724517870756,3.56609,2804.2,2803.5,3.0]
[1724517871061,3.56609,2804.2,2803.1,0.55909749]
[1724517871062,3.56694,2803.6,2803.1,0.55909749]
[1724517871239,3.56671,2803.7,2802.6,3.56809]
[1724517871544,3.56671,2803.7,2802.7,0.55924606]
[1724517871545,4.11686,2803.6,2802.7,0.55924606]
[1724517871703,3.56759,2803.1,2802.3,9.9744]
[1724517871903,3.924349,2803.1,2802.3,9.9744]
[1724517872100,0.55,2803.0,2802.3,9.9744]
[1724517872314,4.11769,2803.0,2802.3,9.9744]
[1724517872714,3.56701,2803.5,2802.4,3.56836]
[1724517872919,0.55,2803.4,2802.4,3.56836]
[1724517873151,6.5662,2804.1,2801.7,9.9744]
[1724517873152,3.56769,2803.0,2801.7,9.9744]
[1724517873372,3.56799,2802.7,2801.8,3.56901]
[1724517873681,3.56799,2802.7,2801.7,13.54362]
[1724517873682,3.56808,2802.7,2801.7,13.54362]
[1724517873838,4.11811,2802.6,2801.7,9.9744]
[1724517874038,7.13622,2802.6,2801.7,9.9744]
[1724517874288,1.263622,2802.6,2801.7,9.9744]
[1724517874436,9.8613,2803.3,2801.7,9.9744]
[1724517874633,3.56752,2803.1,2802.3,3.56848]
[1724517874838,0.55,2803.0,2802.3,3.56848]
[1724517875164,3.56783,2802.9,2801.9,3.56895]
[1724517875367,0.55,2803.2,2802.4,3.56836]
[1724517875599,3.56686,2803.6,2802.5,13.47548428]
[1724517875734,3.56698,2803.5,2802.6,3.56802]
[1724517875939,3.56724,2803.3,2802.5,17.04371428]
[1724517876393,3.5671,2803.4,2802.6,3.56803]
[1724517876592,13.42798,2803.8,2802.8,3.56776]
[1724517876734,3.56671,2803.7,2802.8,3.924536]
[1724517876936,9.8613,2804.3,2803.2,3.56735]
[1724517877185,9.8613,2804.3,2803.3,3.56721]
[1724517877186,3.5663,2804.1,2803.3,3.56721]
[1724517877389,3.5666,2803.8,2802.9,3.56768]
[1724517877550,3.56674,2803.7,2802.5,10.47548428]
[1724517877891,3.56676,2803.7,2802.5,10.47548428]
[1724517878186,3.56676,2803.7,2802.7,3.56786]
[1724517878384,3.56699,2803.5,2802.7,3.56786]
[1724517878537,3.356609,2804.2,2802.6,3.0]
[1724517878538,3.56696,2803.6,2802.6,3.0]
[1724517878730,3.56696,2803.6,2802.6,6.56811]
[1724517878731,3.56719,2803.4,2802.6,6.56811]
[1724517878935,3.56696,2803.6,2802.7,5.27233943]
[1724517879543,3.56696,2803.6,2802.8,3.56784]
[1724517879738,3.56662,2803.8,2802.9,3.56764]
[1724517879943,3.56636,2804.0,2802.8,9.9744]
[1724517880170,11.453821,2804.8,2803.4,3.56698]
[1724517880171,3.56582,2804.4,2803.4,3.56698]
[1724517880482,3.5661,2804.2,2803.5,0.356698]
[1724517880703,3.5661,2804.2,2803.3,3.5671]
[1724517880704,3.5661,2804.2,2803.4,3.56708]
[1724517880862,3.56596,2804.3,2803.4,3.56708]
[1724517881258,3.56609,2804.2,2803.4,3.56708]
[1724517881457,3.56586,2804.4,2803.4,3.923788]
[1724517881715,3.56586,2804.4,2803.6,9.9744]
[1724517881933,3.56562,2804.6,2803.6,9.9744]
[1724517882064,3.56536,2804.8,2803.6,13.54115]
[1724517882417,3.56536,2804.8,2803.8,3.56649]
[1724517882627,3.5652,2804.9,2804.0,3.56632]
[1724517882915,3.5645,2805.5,2803.9,3.356649]
[1724517882916,3.56556,2804.7,2803.9,3.356649]
[1724517883260,3.56521,2804.9,2804.0,3.56632]
[1724517883563,3.56558,2804.6,2803.9,3.356649]
[1724517883760,3.56572,2804.5,2803.9,3.356649]
[1724517883998,3.56558,2804.6,2803.9,0.356649]
[1724517884406,3.56558,2804.6,2803.7,3.0]
[1724517884407,3.5657,2804.5,2803.7,3.0]
[1724517884780,3.5654,2804.8,2803.9,3.56644]
[1724517884981,3.56501,2805.1,2804.3,3.56592]
[1724517885165,3.56483,2805.2,2804.3,3.922452]
[1724517885365,3.56483,2805.2,2804.3,0.356592]
[1724517885593,3.5651,2805.0,2804.3,0.356592]
[1724517886812,3.56493,2805.1,2804.3,3.922532]
[1724517887112,3.5648,2805.2,2804.4,9.2756]
[1724517887322,3.56515,2805.0,2804.5,0.88325522]
[1724517887526,3.56515,2805.0,2804.4,9.2756]
[1724517887809,3.56531,2804.8,2804.4,9.2756]
[1724517888424,3.56545,2804.7,2804.4,9.2756]
[1724517888603,3.56561,2804.6,2804.4,9.2756]
[1724517888783,3.56561,2804.6,2804.1,3.0]
[1724517888979,3.56584,2804.4,2804.1,3.0]
[1724517889176,7.13127,2804.6,2804.1,3.0]
[1724517889426,3.56561,2804.6,2804.1,3.0]
[1724517889627,3.5658,2804.5,2804.1,3.0]
[1724517889924,4.278707,2804.6,2804.1,3.0]
[1724517890234,4.278707,2804.6,2804.0,9.2756]
[1724517890400,3.56578,2804.5,2804.0,9.2756]
[1724517890777,3.56517,2805.0,2804.1,3.56619]
[1724517891101,3.56519,2804.9,2804.0,9.2756]
[1724517891297,3.56519,2804.9,2804.0,12.84192]
[1724517891484,3.56472,2805.3,2804.0,9.2756]
[1724517891824,3.56472,2805.3,2803.7,3.0]
[1724517891825,3.56472,2805.3,2804.5,3.56568]
[1724517892071,3.56456,2805.4,2804.6,9.9513]
[1724517892383,0.712904,2805.4,2804.6,9.9513]
[1724517892560,3.56448,2805.5,2804.6,9.9513]
[1724517892718,3.56476,2805.3,2804.6,9.9513]
[1724517892918,3.56482,2805.2,2804.6,9.9513]
[1724517893130,9.1422,2806.0,2804.6,9.9513]
[1724517893131,3.56494,2805.1,2804.6,9.9513]
[1724517893332,3.56464,2805.4,2804.6,9.9513]
[1724517893772,3.56434,2805.6,2804.6,14.868462]
[1724517893921,9.1422,2806.0,2804.6,11.303002]
[1724517893922,3.56385,2806.0,2804.6,11.303002]
[1724517894125,3.56385,2806.0,2805.1,9.9513]
[1724517894325,3.56356,2806.2,2805.2,3.56471]
[1724517895240,3.56307,2806.6,2805.7,9.9513]
[1724517895579,3.56307,2806.6,2805.7,13.51543]
[1724517895580,3.56326,2806.5,2805.7,13.51543]
[1724517895792,8.03993,2806.8,2805.9,3.56381]
[1724517895949,4.47704,2806.8,2805.7,13.51546]
[1724517896132,9.1422,2807.4,2805.7,9.9513]
[1724517896340,9.1422,2807.4,2805.8,3.56402]
[1724517896341,3.56296,2806.7,2805.8,3.56402]
[1724517896837,3.56296,2806.7,2805.7,13.51536]
[1724517896838,3.56296,2806.7,2805.9,3.5639]
[1724517897552,3.56304,2806.6,2805.7,17.07945]
[1724517897892,2.81963054,2806.6,2805.7,13.51536]
[1724517898190,3.56266,2806.9,2805.8,1.351536]
[1724517898557,3.56245,2807.1,2806.1,3.56362]
[1724517898871,3.56256,2807.0,2806.1,3.56362]
[1724517899277,3.56256,2807.0,2806.2,9.9513]
[1724517899606,3.56312,2806.6,2806.2,9.9513]
[1724517899882,3.56341,2806.3,2805.8,9.9513]
[1724517900052,3.56366,2806.1,2805.4,9.9513]
[1724517900444,3.56332,2806.4,2805.5,3.56442]
[1724517900680,3.56341,2806.3,2805.4,13.51582]
[1724517900891,3.56341,2806.3,2805.5,3.56442]
[1724517901042,3.56329,2806.4,2805.4,15.223859]
[1724517901242,3.56329,2806.4,2805.4,11.659339]
[1724517901491,3.56367,2806.1,2805.5,3.0]
[1724517901786,3.56332,2806.4,2805.5,3.0]
[1724517901947,6.56258,2807.0,2805.5,3.0]
[1724517902139,3.56351,2806.3,2805.5,3.0]
[1724517902397,3.56318,2806.5,2805.5,3.0]
[1724517902398,3.56353,2806.2,2805.5,3.0]
[1724517902748,3.56341,2806.4,2805.5,6.56442]
[1724517902944,3.56354,2806.2,2805.5,3.0]
[1724517903144,3.56402,2805.9,2805.5,3.0]
[1724517904090,3.56518,2805.0,2804.4,0.71670401]
[1724517904256,3.56545,2804.7,2804.2,9.9513]
[1724517904591,3.56557,2804.6,2804.2,9.9513]
[1724517904894,3.56557,2804.6,2803.8,9.481]
[1724517905043,3.56595,2804.3,2803.8,10.4291]
[1724517905237,3.56571,2804.5,2803.8,10.4291]
[1724517905470,3.56298692,2804.5,2803.8,10.4291]
[1724517906339,7.13096,2804.7,2803.8,13.99568]
[1724517906545,3.56561,2804.6,2803.8,13.99568]
[1724517907040,3.56522,2804.9,2804.1,3.56619]
[1724517907269,3.56497,2805.1,2804.0,3.56624]
[1724517907483,3.56507,2805.0,2804.2,3.56607]
[1724517907689,3.56534,2804.8,2804.0,3.56624]
[1724517907841,3.56507,2805.0,2804.1,4.0627608]
[1724517908041,3.5652,2804.9,2804.1,4.0627608]
[1724517908241,3.0,2805.6,2803.9,1.399568]
[1724517908441,3.56543,2804.8,2803.9,6.56637]
[1724517908674,0.55,2805.5,2803.9,3.0]
[1724517908675,3.56546,2804.7,2803.9,3.0]